Cogmind - Beta 13 @@@ ROGUE MODE // 2024.04.05 @ 22:15:49 Player: Exclain Result: Destroyed by G-47 Trooper with Particle Gun Performance ------------- Evolutions (0) 0 Regions Visited (2) 400 Robots Destroyed (13) 65 Value Destroyed (309) 309 Prototype IDs (0) 0 Alien Tech Used (0) 0 Bonus (0) 0 TOTAL SCORE: 774 Bonus ------- None Cogmind --------- Core Integrity 0/250 Matter 300/300 Energy 208/250 System Corruption 0% Temperature Warning (328) Movement Hovering (300) Ox4 Location -10/Mines Parts ------- > --- POWER (1) -------- Ion Engine > --- PROPULSION (2) --- Hover Unit > --- UTILITY (2) ------ Large Storage Unit Light Armor Plating > --- WEAPON (2) ------- Small Laser Small Laser > --- INVENTORY (15) --- Ion Engine Hover Unit Heat Sink Medium Matter Pod (36) Light Armor Plating Small Laser Beam Cannon Light Cannon Light Cannon Peak State ------------ > --- POWER ------------ Ion Engine > --- PROPULSION ------- Hover Unit Hover Unit > --- UTILITY ---------- Heat Sink Large Storage Unit > --- WEAPON ----------- Small Laser Beam Cannon > --- INVENTORY -------- Ion Engine Hover Unit Hover Unit Flight Unit Medium Matter Pod Light Armor Plating Light Armor Plating Small Laser Light Cannon Light Cannon [Rating: 8] Favorites ----------- Power Ion Engine Engine Ion Engine Propulsion Hover Unit Leg Aluminum Leg Wheel Wheel Hover Unit Hover Unit Flight Unit Flight Unit Utility Heat Sink Device Heat Sink Storage Large Storage Unit Protection Light Armor Plating Weapon Small Laser Energy Gun Small Laser Energy Cannon Beam Cannon Ballistic Gun Assault Rifle Build | -11 -10 -10 ------- Run | Yrd Mat Min Slots Evolved . | . . . Power . | . . . Propulsion . | . . . Utility . | . . . Weapon . | . . . Parts Attached 23 | 5 13 5 Power 4 | 1 3 . Engine 4 | 1 3 . Core . | . . . Reactor . | . . . Propulsion 9 | 2 4 3 Treads . | . . . Leg 2 | . 2 . Wheel 2 | 2 . . Hover 4 | . 2 2 Flight 1 | . . 1 Utility 4 | . 3 1 Device 2 | . 2 . Storage 1 | . 1 . Processor . | . . . Hackware . | . . . Protection 1 | . . 1 Artifact . | . . . Weapon 6 | 2 3 1 Energy Gun 3 | . 2 1 Energy Cannon 1 | . 1 . Ballistic Gun 2 | 2 . . Ballistic Cannon . | . . . Launcher . | . . . Special Weapon . | . . . Impact Weapon . | . . . Slashing Weapon . | . . . Piercing Weapon . | . . . Special Melee Weapon . | . . . Unidentified Prototypes . | . . . Parts Lost 5 | . 4 1 Power 1 | . 1 . Propulsion 3 | . 2 1 Utility . | . . . Weapon 1 | . 1 . Highest Loss Streak 4 | . 4 1 To Critical Strikes . | . . . Average Slot Usage (%) 85 | . 80 99 Engine 13 | . 13 14 Leg 4 | . 6 . Wheel 6 | . 8 . Hover 14 | . 9 27 Device 8 | . 10 3 Storage 6 | . 3 14 Protection 2 | . . 10 Energy Gun 13 | . 8 24 Energy Cannon 7 | . 9 3 Ballistic Gun 6 | . 9 . Naked Turns . | . . . Heaviest Build 30 | 7 30 30 Greatest Support 20 | 20 20 12 Greatest Overweight (x) 2 | . 2 2 Average Overweight (x) . | . . 2 Largest Inventory Capacity 15 | 5 15 15 Average Capacity 9 | 5 7 15 Most Carried 10 | 5 9 10 Average Carried 5 | 2 4 8 Final Capacity 15 | 5 15 15 Final Carried 9 | 5 9 9 Class Distribution -------------------- 91% | Mutant 8% | Scavenger-Mutant Dominant Class ---------------- Mutant | -10/Materials Mutant | -10/Mines Resources | -11 -10 -10 ----------- Run | Yrd Mat Min Matter Collected 516 | 262 144 110 Remotely . | . . . Salvage Created 369 | 46 242 81 Parts 31 | 2 23 6 Haulers Intercepted . | . . . Recyclers Shooed 1 | . 1 . Parts Field Recycled . | . . . Retrieved Matter . | . . . Parts Self-Destructed . | . . . Prevented . | . . . Kills | -11 -10 -10 ------- Run | Yrd Mat Min Combat Hostiles Destroyed 11 | 1 6 4 Guns 6 | 1 2 3 Cannons 5 | . 4 1 Classes Destroyed 4 | 1 3 . Recycler 1 | . 1 . Operator 1 | . 1 . Swarmer 5 | . 2 3 Grunt 6 | 1 4 1 Best Kill Streak 5 | 1 5 3 Combat Bots Only 4 | 1 4 3 Max Kills in Single Turn 1 | 1 1 1 Gunslinging . | . . . Exploded . | . . . Melee . | . . . Uniques/NPCs Destroyed . | . . . Combat | -11 -10 -10 -------- Run | Yrd Mat Min Hostile Shots Fired 105 | 3 68 34 Missed 29 | 1 15 13 Damage Taken 857 | 24 587 246 Core 263 | 12 167 84 Absorbed by Shields . | . . . Regen/Repaired (Parts) 41 | . 41 . Core Remaining (%) 95 | 95 . . Volleys Fired 42 | 2 23 17 Largest 2 | 2 2 2 Hottest 100 | 40 100 100 Shots Fired 84 | 4 46 34 Gun 64 | 4 32 28 Cannon 20 | . 14 6 Launcher . | . . . Special . | . . . Kinetic 25 | 4 21 . Thermal 59 | . 25 34 Explosive . | . . . Electromagnetic . | . . . Robot Hit Streak 6 | 2 6 6 Robot Miss Streak 7 | 2 3 7 Penetration Max . | . . . Secondary Targets . | . . . Shots Hit Robots 45 | 2 25 18 Core Hits 20 | 2 11 7 Critical Kills . | . . . Critical Parts Destroyed . | . . . Critical Strikes . | . . . Melee Attacks . | . . . Impact . | . . . Slashing . | . . . Piercing . | . . . Sneak Attacks . | . . . Combat Hostiles . | . . . Follow-up Attacks . | . . . Damage Inflicted 668 | 25 405 238 Guns 491 | 25 263 203 Cannons 177 | . 142 35 Explosions . | . . . Melee . | . . . Ramming . | . . . Kinetic 209 | 25 184 . Thermal 459 | . 221 238 Explosive . | . . . Electromagnetic . | . . . Impact . | . . . Slashing . | . . . Piercing . | . . . Highest Corruption . | . . . Average Corruption . | . . . Corruption Purged . | . . . Corruption Blocked . | . . . Overload Shots . | . . . Overflow Damage . | . . . Projectiles . | . . . Explosions . | . . . Melee . | . . . Knockbacks . | . . . Impact . | . . . Kinetic . | . . . Secondary . | . . . Self-Inflicted Damage . | . . . Shots . | . . . Rammed . | . . . Targets Rammed . | . . . Kicked . | . . . Crushed . | . . . Highest Temperature 319 | . 119 319 Average Temperature 69 | . 31 112 Received Heat Transfer 345 | 12 252 81 Effects 1 | . . 1 Energy Bleed 1 | . . 1 Siege Activations . | . . . Robots Corrupted . | . . . Combat Hostiles . | . . . Parts Fried . | . . . Impact Corruptions . | . . . Robots Melted . | . . . Combat Hostiles . | . . . Parts Melted 2 | . 1 1 Heat Transferred 995 | . 471 524 Parts Sabotaged . | . . . Parts Stolen . | . . . Parts Stripped . | . . . Power Chain Reactions . | . . . Alert | -11 -10 -10 ------- Run | Yrd Mat Min Peak Influence 198 | 20 198 105 Initial 13 | . 13 . Average 73 | 3 81 83 Maximum Alert Level . | . . . Low Security (%) 100 | 100 100 100 Level 1 . | . . . Level 2 . | . . . Level 3 . | . . . Level 4 . | . . . Level 5 . | . . . High Security . | . . . Max Security . | . . . Squads Dispatched . | . . . Investigation . | . . . Extermination . | . . . Reinforcement . | . . . Assault . | . . . Garrison . | . . . Intercept . | . . . Searches Triggered . | . . . Construction Impeded . | . . . Haulers Reinforced . | . . . Active Scanning Responses . | . . . Cargo Convoy Interrupts . | . . . Stealth | -11 -10 -10 --------- Run | Yrd Mat Min Distress Signals 2 | . 2 . Communications Jammed . | . . . Distress Signals . | . . . Times Spotted 19 | 1 13 5 Peak Tracking Total 7 | 1 7 3 Tactical Retreats . | . . . Traps | -11 -10 -10 ------- Run | Yrd Mat Min Traps Triggered . | . . . Indirectly . | . . . Trap Hack Attempts . | . . . Triggered . | . . . Disarmed . | . . . Reprogrammed . | . . . Reused . | . . . Traps Extracted . | . . . Installed . | . . . Triggered . | . . . Machines | -11 -10 -10 ---------- Run | Yrd Mat Min Machines Disabled 2 | . 1 1 Max in Single Turn 1 | . 1 1 Machines Repaired . | . . . Machines Dismantled . | . . . Machines Sabotaged . | . . . Overloaded Fab Kills . | . . . Hacking | -11 -10 -10 --------- Run | Yrd Mat Min Machines Accessed 2 | . 2 . Terminals 1 | . 1 . Fabricators . | . . . Repair Stations 1 | . 1 . Recycling Units . | . . . Scanalyzers . | . . . Garrison Access . | . . . Total Hacks 4 | . 4 . Successful 4 | . 4 . Failed . | . . . Catastrophic . | . . . Database Lockouts . | . . . Manual . | . . . Terminals 2 | . 2 . Fabricators . | . . . Repair Stations 2 | . 2 . Recycling Units . | . . . Scanalyzers . | . . . Garrison Access . | . . . Terminal Hacks 2 | . 2 . Record 2 | . 2 . Fabricator Hacks . | . . . Repair Station Hacks 2 | . 2 . Scan Component 1 | . 1 . Repair 1 | . 1 . Recycling Unit Hacks . | . . . Scanalyzer . | . . . Garrison Access Hacks . | . . . Unauthorized Hacks . | . . . Terminals . | . . . Fabricators . | . . . Repair Stations . | . . . Recycling Units . | . . . Scanalyzers . | . . . Garrison Access . | . . . Data Cores Recovered 1 | . 1 . Used . | . . . Hacking Detections 1 | . 1 . Full Trace Events . | . . . Feedback Events . | . . . Feedback Blocked . | . . . Robot Schematics Acquired . | . . . Robots Built . | . . . Authchips . | . . . Time . | . . . Total Robot Build Rating . | . . . Part Schematics Acquired . | . . . Parts Built . | . . . Authchips . | . . . Time . | . . . Total Part Build Rating . | . . . Parts Repaired 1 | . 1 . Time 26 | . 26 . Parts Recycled . | . . . Recycled Matter . | . . . Retrieved Matter . | . . . Retrieved Components . | . . . Parts Scanalyzed . | . . . Part Schematics Acquired . | . . . Parts Damaged . | . . . Bothacking | -11 -10 -10 ------------ Run | Yrd Mat Min Used RIF Installer . | . . . Robots Hacked . | . . . Non-combat . | . . . Combat . | . . . Robot Hacks Applied . | . . . Relay Couplers Released . | . . . Fabnet Peak Effective % . | . . . Robots Rewired . | . . . Allies Hacked . | . . . Hacks Repelled . | . . . Allies | -11 -10 -10 -------- Run | Yrd Mat Min Total Allies . | . . . Largest Group . | . . . Highest-Rated Group . | . . . Highest-Rated Ally . | . . . Total Orders . | . . . Ally Attacks . | . . . Total Damage . | . . . Kills . | . . . Allies Corrupted . | . . . Allies Melted . | . . . Intel | -11 -10 -10 ------- Run | Yrd Mat Min Robot Analysis Total . | . . . Derelict Logs Recovered . | . . . Drone Launches . | . . . Drone Recoveries . | . . . Exploration | -11 -10 -10 ------------- Run | Yrd Mat Min Turns Passed 715 | 80 464 171 Spaces Moved 487 | 85 339 63 Core 67 | 30 37 . Treads . | . . . Legs 62 | . 62 . Wheels 198 | 55 143 . Hover 160 | . 97 63 Flight . | . . . Fastest Speed 50 | 50 50 176 Average Speed 107 | 69 104 176 Slowest Speed 176 | 80 176 176 Overloaded Moves . | . . . Propulsion Burnouts . | . . . Robots Hopped . | . . . Cave-ins Triggered . | . . . Exploration Rate (%) 27 | 6 58 19 Regions Visited 2 Branch Regions 1 Pre-discovered Areas . | . . . Known Exits Taken . | . . . Unknown Exits Taken 2 | 1 1 . Scrap Searched 1 | . . 1 Spaces Dug . | . . . Terrain Destroyed . | . . . Melee . | . . . Projectile . | . . . AOE . | . . . Terrain Rammed . | . . . Walls Destroyed . | . . . Machines Disabled . | . . . Actions | -11 -10 -10 --------- Run | Yrd Mat Min Total 593 | 101 403 89 Wait . | . . . Move 485 | 84 338 63 Hop . | . . . Pick Up 32 | 10 20 2 Fast Attach . | . . . Attach 13 | 5 7 1 Detach . | . . . Swap 10 | . 6 4 Drop 11 | . 9 2 Fire 42 | 2 23 17 Melee . | . . . Ram . | . . . Kick . | . . . Crush . | . . . Escape Stasis . | . . . Rewire . | . . . Trap . | . . . Miscellaneous . | . . . Route ------- -11/Scrapyard -10/Materials -10/Mines (discovered 1 exit: [*Mat]) History --------- Turn | Location | Event 2 | -11/Scrapyard | Met Revision 17 60 | -11/Scrapyard | Discovered new exit (range 8) 81 | -11/Scrapyard | Entered Materials 227 | -10/Materials | Core integrity fell below 50% 259 | -10/Materials | Lost 4 parts (1p2n1w) 286 | -10/Materials | Repaired Ion Engine 307 | -10/Materials | Build established: Mutant 489 | -10/Materials | Discovered new exit (range 16) 545 | -10/Materials | Entered Mines 550 | -10/Mines | Core integrity fell below 20% 636 | -10/Mines | Discovered new exit (range 13) 716 | -10/Mines | Destroyed by G-47 Trooper with Particle Gun Last Messages --------------- Acquired 15 matter. Acquired Flight Unit. Flying robots can pass through spaces occupied by others, even hostile robots. Dropped Hover Unit. Dropped Flight Unit. K-01 Serf collects debris. EXIT=FOUND K-01 Serf collects debris. Searching scrap... Found Welding Torch. Found Hcp. Matter Pod. Found 29 Matter. Acquired 29 matter. K-01 Serf collects debris. G-34 Mercenary destroyed. Acquired Sml. Laser. Acquired 34 matter. Hover Unit destroyed. Overheating: Energy bleed (-55). Map ----- +----------------------------------------------------+ | ??????????????????????????????????# """ #??? | | ??????????????????????????????????# "" #??? | | ????????????????????????? ???????# [ [= #??? | | ???????????????????????# #?????# = #??? | | ???????????????????????# ######### #####??? | | ??????????????????????# #??????? | | ?????????????????????# #??????? | | ????????????????????? ### ##??????? | | ????????????????????? ### ## ##??????? | | ?????????????????????? ??????## ##?????? | | ??????????????????????????????## ##????? | | ???????????????????????????????## #????? | | ????????????????????????????????## #????? | | ????????????????????????????####?## #????? | | ???????????????????????????## #### ##????? | | ??????????????????????????## u ##?????? | | ??????????????????????##### #??????? | | ????????????????????### ##??????? | | ???????????????????## ##???????? | | ????????????????#### ###????????? | | ???????????????? ##??????????? | | ???????????????? #???????????? | | ???????????????? #???????????? | | ?????????????????##### ##???????????? | | ?????????????????????## #????????????? | | ??????????????????????##=@## ##????????????? | | ???????????????????????## ### #?????????????? | | ????????????????????????# #?## #?????????????? | | ????????????????????????#g####| #?????????????? | | ????????????????????????# !#?????????????? | | ????????????????????????###### #?????????????? | | ?????????????????????????????# #????????????? | | ?????????????????????????????### #????????????? | | ???????????????????????????????? #????????????? | | ???????????????????????????????? #????????????? | | ????????????????????????????????< ????????????? | | ???????????????????????????????? ????????????? | | ???????????????????????????????? ???????????? | | ???????????????????????????????? ???????????? | | ???????????????????????????????? #???????????? | | ??????????????????????????????????#???????????? | | ??????????????????????????????????????????????? | | ??????????????????????????????????????????????? | | ??????????????????????????????????????????????? | | ??????????????????????????????????????????????? | | ??????????????????????????????????????????????? | | ??????????????????????????????????????????????? | | ??????????????????????????????????????????????? | | ??????????????????????????????????????????????? | | ??????????????????????????????????????????????? | +----------------------------------------------------+ Best States ------------- Heat Dissipation 45 Energy Generation 10 Energy Capacity 250 Matter Stores 300 Matter Capacity 300 Sight Range 16 Terrain Scan Density 10 Armor Coverage 150 Evasion (%) 55 Item Schematics ----------------- None Robot Schematics ------------------ None Fabricated ------------ Nothing Alien Tech Used ----------------- None Achievements -------------- Part-time Mechanic Challenges ------------ None Game ------ Seed SpacefoldCommTube Manual? 0 Play Time 00:14:28 Cumulative 0.9 hours Start 2024.04.05 @ 22:02:18 End 2024.04.05 @ 22:15:49 Sessions 1 Manual Loads 0 Difficulty Rogue Special Mode None Game No. 2 Rogue 2 Adventurer 0 Explorer 0 Win Type - Total 0 Types 0/0/0/0/0/0/0/0/0 Lore% 7 Gallery% 3 Achievement% 3 Wizard Run 0 Options --------- Layout 1 ASCII 0 Keyboard 0 Movement Arrows Keybinds 0 Fullscreen 1 Font 24/Smallcaps Map View 50x35 Zoom Use 0% Tactical HUD 0 Map Filters NONE Filters NONE Steam 1 RUN: fc3b3aed-dbe4-4a64-9cb5-edb520fc4022